fUST/lending_fUST_20241223
["ID","MTS","AMOUNT","RATE_DAILY","PERIOD"]
[346335812,1734898254264,-5890.66,0.00015068,2]
[346335813,1734898254273,-573.25,0.00015068,2]
[346335814,1734898254282,-500.0,0.00015068,2]
[346335815,1734898254291,-4883.13,0.00015068,2]
[346335816,1734898254301,-1047.64,0.00015068,2]
[346335817,1734898254310,-500.0,0.00015068,2]
[346335818,1734898254319,-4342.66,0.00015068,2]
[346335819,1734898254328,-607.58,0.00015068,2]
[346335820,1734898254337,-1227.82,0.00015068,2]
[346335821,1734898254347,-405.3388686,0.00015068,2]
[346335822,1734898254357,-500.0,0.00015068,2]
[346335823,1734898254366,-1375.84,0.00015068,2]
[346335824,1734898254375,-2388.17,0.00015068,2]
[346335825,1734898254384,-2216.78,0.00015068,2]
[346335826,1734898254394,-1350.81,0.00015068,2]
[346335827,1734898254403,-150.55047547,0.00015068,2]
[346335828,1734898254412,-1049.15,0.00015068,2]
[346335829,1734898254422,-1013.59145112,0.00015122,2]
[346335830,1734898254431,-2000.0,0.000152,2]
[346335831,1734898254441,-2016.85267282,0.00015284,2]
[346335832,1734898254450,-160.0,0.00015288,3]
[346335833,1734898254461,-196.12589463,0.00015321,2]
[346335834,1734898254779,-500.0,0.00013698,2]
[346335835,1734898254789,-500.0,0.00013972,2]
[346335836,1734898254799,-3607.86,0.00014246,2]
[346335837,1734898254809,-500.0,0.00014246,2]
[346335838,1734898254818,-3607.86,0.0001452,2]
[346335839,1734898254827,-500.0,0.0001452,2]
[346335840,1734898254836,-282.78,0.00014794,2]
[346335841,1734898254857,-1148.4465268,0.00014794,2]
[346335842,1734898254869,-2176.6334732,0.00014794,2]
[346335843,1734898254878,-500.0,0.00014794,2]
[346335844,1734898254887,-3607.86,0.00015068,2]
[346335845,1734898254897,-500.0,0.00015068,2]
[346335846,1734898254906,-247.52039303,0.00015321,2]
[346335847,1734898254915,-392.46934399,0.00015321,2]
[346335848,1734898254924,-1000.0,0.00015321,2]
[346335849,1734898254933,-1000.0,0.00015321,2]
[346335850,1734898254945,-1068.95680738,0.00015321,2]
[346335851,1734898254956,-988.62139845,0.00015321,2]
[346335852,1734898254965,-1000.0,0.00015321,2]
[346335853,1734898254974,-1000.0,0.00015321,2]
[346335854,1734898254984,-594.13147849,0.00015321,2]
[346335855,1734898254995,-1000.0,0.00015321,2]
[346335856,1734898255004,-575.99159477,0.00015321,2]
[346335857,1734898255014,-1000.0,0.00015321,2]
[346335858,1734898255023,-1000.0,0.00015321,2]
[346335859,1734898255033,-500.0,0.00015321,2]
[346335860,1734898255043,-500.0,0.00015342,2]
[346335861,1734898255053,-500.0,0.00015342,2]
[346335862,1734898255062,-151.0,0.00015342,2]
[346335863,1734898255071,-151.0,0.00015342,2]
[346335864,1734898255082,-151.0,0.00015342,2]
[346335865,1734898255093,-500.0,0.00015342,2]
[346335866,1734898255103,-709.72,0.00015342,2]
[346335867,1734898255113,-564.63,0.00015342,2]
[346335868,1734898255122,-500.0,0.00015342,2]
[346335869,1734898255133,-500.0,0.00015342,2]
[346335870,1734898255145,-500.0,0.00015342,2]
[346335871,1734898255154,-500.0,0.00015342,2]
[346335872,1734898255163,-596.88,0.00015342,2]
[346335873,1734898255173,-509.11,0.00015342,2]
[346335874,1734898255183,-500.0,0.00015342,2]
[346335875,1734898255193,-500.0,0.00015342,2]
[346335876,1734898255202,-508.19,0.00015342,2]
[346335877,1734898255212,-500.0,0.00015342,2]
[346335878,1734898255221,-500.0,0.00015342,2]
[346335879,1734898255231,-500.0,0.00015342,2]
[346335880,1734898255240,-500.0,0.00015342,2]
[346335881,1734898255249,-500.0,0.00015342,2]
[346335882,1734898255258,-500.0,0.00015342,2]
[346335883,1734898255267,-500.0,0.00015342,2]
[346335884,1734898255276,-500.0,0.00015342,2]
[346335885,1734898255285,-996.41,0.00015342,2]
[346335886,1734898255295,-552.02,0.00015342,2]
[346335887,1734898255304,-500.0,0.00015342,2]
[346335888,1734898255313,-896.76,0.00015342,2]
[346335889,1734898255323,-643.06,0.00015342,2]
[346335890,1734898255332,-622.12,0.00015342,2]
[346335891,1734898255342,-544.82,0.00015342,2]
[346335892,1734898255351,-500.0,0.00015342,2]
[346335893,1734898255362,-500.0,0.00015342,2]
[346335894,1734898255372,-151.139843,0.00015342,2]
[346335895,1734898255381,-514.67,0.00015342,2]
[346335896,1734898255390,-151.139843,0.00015342,2]
[346335897,1734898255399,-500.0,0.00015342,2]
[346335898,1734898255409,-1747.14,0.00015342,2]
[346335899,1734898255418,-638.51,0.00015342,2]
[346335900,1734898255428,-500.0,0.00015342,2]
[346335901,1734898255437,-500.0,0.00015342,2]
[346335902,1734898255446,-500.0,0.00015342,2]
[346335903,1734898255457,-251.59681955,0.00015342,2]
[346335904,1734898255469,-500.0,0.00015342,2]
[346335905,1734898255478,-1146.78,0.00015342,2]
[346335906,1734898255487,-1384.02,0.00015342,2]
[346335907,1734898255496,-500.0,0.00015342,2]
[346335908,1734898255506,-204.29,0.00015342,2]
[346335909,1734898255515,-1829.53,0.00015342,2]
[346335910,1734898255527,-500.0,0.00015342,2]
[346335911,1734898255540,-620.23,0.00015342,2]
[346335912,1734898255549,-1154.81,0.00015342,2]
[346335913,1734898255558,-1071.92,0.00015342,2]
[346335914,1734898255567,-3377.75,0.00015342,2]
[346335915,1734898255577,-677.42,0.00015342,2]
[346335916,1734898255586,-500.0,0.00015342,2]
[346335917,1734898255595,-674.98,0.00015342,2]
[346335918,1734898255604,-1484.35,0.00015342,2]
[346335919,1734898255614,-500.0,0.00015342,2]
[346335920,1734898255623,-500.0,0.00015342,2]
[346335921,1734898255632,-500.0,0.00015342,2]
[346335922,1734898255641,-915.03,0.00015342,2]
[346335923,1734898255651,-1120.23,0.00015342,2]
[346335924,1734898255660,-500.0,0.00015342,2]
[346335925,1734898255669,-500.0,0.00015342,2]
[346335926,1734898255678,-645.28,0.00015342,2]
[346335927,1734898255687,-500.0,0.00015342,2]
[346335928,1734898255696,-966.84,0.00015342,2]
[346335929,1734898255706,-500.0,0.00015342,2]
[346335930,1734898255716,-671.49,0.00015342,2]
[346335931,1734898255725,-999.5,0.00015342,2]
[346335932,1734898255734,-500.0,0.00015342,2]
[346335933,1734898255743,-1014.49,0.00015342,2]
[346335934,1734898255752,-500.0,0.00015342,2]
[346335935,1734898255761,-1300.26,0.00015342,2]
[346335936,1734898255771,-500.0,0.00015342,2]
[346335937,1734898255780,-559.61,0.00015342,2]
[346335938,1734898255789,-962.09,0.00015342,2]
[346335939,1734898255798,-500.0,0.00015342,2]
[346335940,1734898255807,-500.0,0.00015342,2]
[346335941,1734898255816,-500.0,0.00015342,2]
[346335942,1734898255825,-2050.24,0.00015342,2]
[346335943,1734898255835,-500.0,0.00015342,2]
[346335944,1734898255843,-500.0,0.00015342,2]
[346335945,1734898255853,-500.0,0.00015342,2]
[346335946,1734898255862,-1840.32,0.00015342,2]
[346335947,1734898255871,-500.0,0.00015342,2]
[346335948,1734898255880,-619.23,0.00015342,2]
[346335949,1734898255890,-500.0,0.00015342,2]
[346335950,1734898255899,-1286.39,0.00015342,2]
[346335951,1734898255908,-500.0,0.00015342,2]
[346335952,1734898255917,-1768.71,0.00015342,2]
[346335953,1734898255926,-1426.45,0.00015342,2]
[346335954,1734898255935,-564.33,0.00015342,2]
[346335955,1734898255944,-1742.18,0.00015342,2]
[346335956,1734898255953,-500.0,0.00015342,2]
[346335957,1734898255962,-500.0,0.00015342,2]
[346335958,1734898255971,-500.0,0.00015342,2]
[346335959,1734898255980,-500.0,0.00015342,2]
[346335960,1734898255989,-500.0,0.00015342,2]
[346335961,1734898255998,-1026.24,0.00015342,2]
[346335962,1734898256007,-500.0,0.00015342,2]
[346335963,1734898256017,-638.78,0.00015342,2]
[346335964,1734898256026,-524.92,0.00015342,2]
[346335965,1734898256035,-500.0,0.00015342,2]
[346335966,1734898256044,-930.06,0.00015342,2]
[346335967,1734898256054,-500.0,0.00015342,2]
[346335968,1734898256064,-568.29,0.00015342,2]
[346335969,1734898256073,-1232.72,0.00015342,2]
[346335970,1734898256083,-659.14,0.00015342,2]
[346335971,1734898256241,-1396.28,0.00015342,2]
[346335972,1734898256251,-500.0,0.00015342,2]
[346335973,1734898256261,-500.0,0.00015342,2]
[346335974,1734898256270,-500.0,0.00015342,2]
[346335975,1734898256279,-500.0,0.00015342,2]
[346335976,1734898256288,-500.0,0.00015342,2]
[346335977,1734898256297,-20933.72,0.00015342,2]
[346335978,1734898256307,-1915.93,0.00015342,2]
[346335979,1734898256317,-500.0,0.00015342,2]
[346335980,1734898256326,-500.0,0.00015342,2]
[346335981,1734898256338,-11586.64,0.00015342,2]
[346335982,1734898256349,-3634.74,0.00015342,2]
[346335983,1734898256359,-735.37,0.00015342,2]
[346335984,1734898256368,-500.0,0.00015342,2]
[346335985,1734898256377,-609.44,0.00015342,2]
[346335986,1734898256387,-2358.12,0.00015342,2]
[346335987,1734898256398,-16117.57,0.00015342,2]
[346335988,1734898256407,-500.0,0.00015342,2]
[346335989,1734898256416,-649.01,0.00015342,2]
[346335990,1734898256426,-993.7,0.00015342,2]
[346335991,1734898256435,-500.0,0.00015342,2]
[346335992,1734898256444,-8248.44,0.00015342,2]
[346335993,1734898256453,-2313.9,0.00015342,2]
[346335994,1734898256462,-50269.66,0.00015342,2]
[346335995,1734898256471,-500.0,0.00015342,2]
[346335996,1734898256481,-2571.7,0.00015342,2]
[346335997,1734898256491,-500.0,0.00015342,2]
[346335998,1734898256499,-500.0,0.00015342,2]
[346335999,1734898256509,-500.0,0.00015342,2]
[346336000,1734898256520,-500.0,0.00015342,2]
[346336001,1734898256530,-540.65,0.00015342,2]
[346336002,1734898256540,-1127.35,0.00015342,2]
[346336003,1734898256549,-500.0,0.00015342,2]
[346336004,1734898256558,-500.0,0.00015342,2]
[346336005,1734898256577,-821.27,0.00015342,2]
[346336006,1734898256586,-975.47,0.00015342,2]
[346336007,1734898256596,-630.05,0.00015342,2]
[346336008,1734898256606,-1895.21,0.00015342,2]
[346336009,1734898256615,-468.25656897,0.00015342,2]
[346336010,1734898256624,-500.0,0.00015342,2]
[346336011,1734898256633,-500.0,0.00015342,2]
[346336012,1734898256642,-940.44,0.00015342,2]
[346336013,1734898256652,-1313.77,0.00015342,2]
[346336014,1734898256660,-664.22,0.00015342,2]
[346336015,1734898256669,-500.0,0.00015342,2]
[346336016,1734898256679,-2213.08,0.00015342,2]
[346336017,1734898256688,-1144.59,0.00015342,2]
[346336018,1734898256698,-5890.66,0.00015342,2]
[346336019,1734898256707,-573.25,0.00015342,2]
[346336020,1734898256716,-500.0,0.00015342,2]
[346336021,1734898256725,-4883.13,0.00015342,2]
[346336022,1734898256735,-1047.64,0.00015342,2]
[346336023,1734898256744,-500.0,0.00015342,2]
[346336024,1734898256753,-4342.66,0.00015342,2]
[346336025,1734898256762,-607.58,0.00015342,2]
[346336026,1734898256771,-1227.82,0.00015342,2]
[346336027,1734898256780,-500.0,0.00015342,2]
[346336028,1734898256789,-1375.84,0.00015342,2]
[346336029,1734898256798,-2388.17,0.00015342,2]
[346336030,1734898256807,-2216.78,0.00015342,2]
[346336031,1734898256816,-1350.81,0.00015342,2]
[346336032,1734898256825,-1049.15,0.00015342,2]
[346336033,1734898256834,-3607.86,0.00015342,2]
[346336034,1734898256843,-500.0,0.00015342,2]
[346336035,1734898256852,-665.0,0.000154,5]
[346336036,1734898256861,-160.0,0.00015463,4]
[346336037,1734898256871,-500.0,0.00015616,2]
[346336038,1734898256881,-500.0,0.00015616,2]
[346336039,1734898256890,-151.0,0.00015616,2]
[346336040,1734898256899,-151.0,0.00015616,2]
[346336041,1734898256909,-164.737787,0.00015616,2]
[346336042,1734898256918,-151.0,0.00015616,2]
[346336043,1734898256927,-500.0,0.00015616,2]
[346336044,1734898256935,-709.72,0.00015616,2]
[346336045,1734898256944,-564.63,0.00015616,2]
[346336046,1734898256954,-500.0,0.00015616,2]
[346336047,1734898256963,-500.0,0.00015616,2]
[346336048,1734898256972,-440.53636575,0.00015616,2]
[346336049,1734898256981,-500.0,0.00015616,2]
[346336050,1734898256992,-596.88,0.00015616,2]
[346336051,1734898257002,-509.11,0.00015616,2]
[346336052,1734898257011,-500.0,0.00015616,2]
[346336053,1734898257021,-500.0,0.00015616,2]
[346336054,1734898257031,-508.19,0.00015616,2]
[346336055,1734898257041,-500.0,0.00015616,2]
[346336056,1734898257050,-500.0,0.00015616,2]
[346336057,1734898257059,-500.0,0.00015616,2]
[346336058,1734898257069,-295.36442636,0.00015616,2]
[346336059,1734898257079,-500.0,0.00015616,2]
[346336060,1734898257088,-500.0,0.00015616,2]
[346336061,1734898257097,-500.0,0.00015616,2]
[346336062,1734898257106,-500.0,0.00015616,2]
[346336063,1734898257115,-996.41,0.00015616,2]
[346336064,1734898257125,-552.02,0.00015616,2]
[346336065,1734898257135,-500.0,0.00015616,2]
[346336066,1734898257145,-896.76,0.00015616,2]
[346336067,1734898257155,-643.06,0.00015616,2]
[346336068,1734898257164,-622.12,0.00015616,2]
[346336069,1734898257173,-544.82,0.00015616,2]
[346336070,1734898257183,-500.0,0.00015616,2]
[346336071,1734898257192,-419.73471731,0.00015616,2]
[346336072,1734898257201,-151.139843,0.00015616,2]
[346336073,1734898257210,-514.67,0.00015616,2]
[346336074,1734898257219,-151.139843,0.00015616,2]
[346336075,1734898257228,-500.0,0.00015616,2]
[346336076,1734898257238,-1747.14,0.00015616,2]
[346336077,1734898257247,-638.51,0.00015616,2]
[346336078,1734898257256,-500.0,0.00015616,2]
[346336079,1734898257265,-500.0,0.00015616,2]
[346336080,1734898257274,-434.69093375,0.00015616,2]
[346336081,1734898257284,-375.3651472,0.00015616,2]
[346336082,1734898257294,-1146.78,0.00015616,2]
[346336083,1734898257303,-1384.02,0.00015616,2]
[346336084,1734898257311,-500.0,0.00015616,2]
[346336085,1734898257321,-204.29,0.00015616,2]
[346336086,1734898257331,-1829.53,0.00015616,2]
[346336087,1734898257340,-500.0,0.00015616,2]
[346336088,1734898257349,-620.23,0.00015616,2]
[346336089,1734898257359,-1154.81,0.00015616,2]
[346336090,1734898257368,-3377.75,0.00015616,2]
[346336091,1734898257377,-1071.92,0.00015616,2]
[346336092,1734898257386,-677.42,0.00015616,2]
[346336093,1734898257395,-500.0,0.00015616,2]
[346336094,1734898257405,-674.98,0.00015616,2]
[346336095,1734898257414,-1484.35,0.00015616,2]
[346336096,1734898257423,-500.0,0.00015616,2]
[346336097,1734898257432,-500.0,0.00015616,2]
[346336098,1734898257441,-500.0,0.00015616,2]
[346336099,1734898257450,-915.03,0.00015616,2]
[346336100,1734898257460,-1120.23,0.00015616,2]
[346336101,1734898257469,-500.0,0.00015616,2]
[346336102,1734898257478,-500.0,0.00015616,2]
[346336103,1734898257487,-645.28,0.00015616,2]
[346336104,1734898257496,-390.382651,0.00015616,2]
[346336105,1734898257505,-966.84,0.00015616,2]
[346336106,1734898257514,-500.0,0.00015616,2]
[346336107,1734898257524,-671.49,0.00015616,2]
[346336108,1734898257537,-999.5,0.00015616,2]
[346336109,1734898257548,-500.0,0.00015616,2]
[346336110,1734898257557,-1014.49,0.00015616,2]
[346336111,1734898257569,-500.0,0.00015616,2]
[346336112,1734898257579,-1300.26,0.00015616,2]
[346336113,1734898257591,-500.0,0.00015616,2]
[346336114,1734898257602,-559.61,0.00015616,2]
[346336115,1734898257612,-962.09,0.00015616,2]
[346336116,1734898257622,-500.0,0.00015616,2]
[346336117,1734898257631,-500.0,0.00015616,2]
[346336118,1734898257641,-500.0,0.00015616,2]
[346336119,1734898257650,-2050.24,0.00015616,2]
[346336120,1734898257659,-500.0,0.00015616,2]
[346336121,1734898257668,-500.0,0.00015616,2]
[346336122,1734898257677,-500.0,0.00015616,2]
[346336123,1734898257686,-1840.32,0.00015616,2]
[346336124,1734898257696,-500.0,0.00015616,2]
[346336125,1734898257706,-619.23,0.00015616,2]
[346336126,1734898257715,-429.05015843,0.00015616,2]
[346336127,1734898257724,-1286.39,0.00015616,2]
[346336128,1734898257734,-500.0,0.00015616,2]
[346336129,1734898257744,-1768.71,0.00015616,2]
[346336130,1734898257753,-1426.45,0.00015616,2]
[346336131,1734898257762,-564.33,0.00015616,2]
[346336132,1734898257772,-1742.18,0.00015616,2]
[346336133,1734898257782,-500.0,0.00015616,2]
[346336134,1734898257791,-500.0,0.00015616,2]
[346336135,1734898257803,-500.0,0.00015616,2]
[346336136,1734898257812,-500.0,0.00015616,2]
[346336137,1734898257822,-500.0,0.00015616,2]
[346336138,1734898257833,-1026.24,0.00015616,2]
[346336139,1734898257842,-500.0,0.00015616,2]
[346336140,1734898257852,-638.78,0.00015616,2]
[346336141,1734898257862,-524.92,0.00015616,2]
[346336142,1734898257873,-500.0,0.00015616,2]
[346336143,1734898257887,-930.06,0.00015616,2]
[346336144,1734898257903,-500.0,0.00015616,2]
[346336145,1734898257916,-568.29,0.00015616,2]
[346336146,1734898257930,-1232.72,0.00015616,2]
[346336147,1734898257941,-659.14,0.00015616,2]
[346336148,1734898257955,-1396.28,0.00015616,2]
[346336149,1734898257967,-377.60986132,0.00015616,2]
[346336150,1734898257981,-500.0,0.00015616,2]
[346336151,1734898257994,-500.0,0.00015616,2]
[346336152,1734898258007,-500.0,0.00015616,2]
[346336153,1734898258020,-500.0,0.00015616,2]
[346336154,1734898258032,-20933.72,0.00015616,2]
[346336155,1734898258044,-1915.93,0.00015616,2]
[346336156,1734898258057,-500.0,0.00015616,2]
[346336157,1734898258069,-500.0,0.00015616,2]
[346336158,1734898258081,-11586.64,0.00015616,2]
[346336159,1734898258093,-3634.74,0.00015616,2]
[346336160,1734898258104,-735.37,0.00015616,2]
[346336161,1734898258117,-500.0,0.00015616,2]
[346336162,1734898258129,-609.44,0.00015616,2]
[346336163,1734898258142,-2358.12,0.00015616,2]
[346336164,1734898258153,-16117.57,0.00015616,2]
[346336165,1734898258163,-500.0,0.00015616,2]
[346336166,1734898258174,-649.01,0.00015616,2]
[346336167,1734898258186,-993.7,0.00015616,2]
[346336168,1734898258196,-500.0,0.00015616,2]
[346336169,1734898258210,-8248.44,0.00015616,2]
[346336170,1734898258222,-2313.9,0.00015616,2]
[346336171,1734898258235,-50269.66,0.00015616,2]
[346336172,1734898258248,-500.0,0.00015616,2]
[346336173,1734898258261,-2571.7,0.00015616,2]
[346336174,1734898258273,-500.0,0.00015616,2]
[346336175,1734898258286,-500.0,0.00015616,2]
[346336176,1734898258297,-500.0,0.00015616,2]
[346336177,1734898258307,-500.0,0.00015616,2]
[346336178,1734898258318,-540.65,0.00015616,2]
[346336179,1734898258329,-1127.35,0.00015616,2]
[346336180,1734898258340,-500.0,0.00015616,2]
[346336181,1734898258353,-500.0,0.00015616,2]
[346336182,1734898258366,-821.27,0.00015616,2]
[346336183,1734898258378,-975.47,0.00015616,2]
[346336184,1734898258388,-630.05,0.00015616,2]
[346336185,1734898258399,-1895.21,0.00015616,2]
[346336186,1734898258410,-500.0,0.00015616,2]
[346336187,1734898258421,-621.07725838,0.00015616,2]
[346336188,1734898258433,-940.44,0.00015616,2]
[346336189,1734898258445,-1313.77,0.00015616,2]
[346336190,1734898258456,-664.22,0.00015616,2]
[346336191,1734898258467,-500.0,0.00015616,2]
[346336192,1734898258478,-2213.08,0.00015616,2]
[346336193,1734898258490,-1144.59,0.00015616,2]
[346336194,1734898258500,-5890.66,0.00015616,2]
[346336195,1734898258511,-573.25,0.00015616,2]
[346336196,1734898258523,-500.0,0.00015616,2]
[346336197,1734898258535,-4883.13,0.00015616,2]
[346336198,1734898258545,-1047.64,0.00015616,2]
[346336199,1734898258556,-500.0,0.00015616,2]
[346336200,1734898258567,-4342.66,0.00015616,2]
[346336201,1734898258579,-607.58,0.00015616,2]
[346336202,1734898258589,-1227.82,0.00015616,2]
[346336203,1734898258602,-500.0,0.00015616,2]
[346336204,1734898258616,-1375.84,0.00015616,2]
[346336205,1734898258628,-2388.17,0.00015616,2]
[346336206,1734898258639,-2216.78,0.00015616,2]
[346336207,1734898258651,-1350.81,0.00015616,2]
[346336208,1734898258662,-1049.15,0.00015616,2]
[346336209,1734898258673,-3607.86,0.00015616,2]
[346336210,1734898258684,-500.0,0.00015616,2]
[346336211,1734898258695,-160.0,0.00015639,5]
[346336212,1734898258706,-519.51389708,0.0001566,2]
[346336213,1734898258716,-217.33755207,0.0001566,2]
[346336214,1734898258728,-375.96655049,0.0001566,2]
[346336215,1734898258740,-202.22357695,0.0001566,2]
[346336216,1734898258751,-191.96573574,0.0001566,2]
[346336217,1734898258763,-504.47709868,0.0001566,2]
[346336218,1734898258775,-643.12510223,0.0001566,2]
[346336219,1734898258786,-500.0,0.0001566,2]
[346336220,1734898258797,-500.0,0.0001566,2]
[346336221,1734898258809,-500.0,0.0001566,2]
[346336222,1734898258820,-501.59897304,0.0001566,2]
[346336223,1734898258831,-500.0,0.0001566,2]
[346336224,1734898258842,-160.0,0.00015815,6]
[346336225,1734898258853,-500.0,0.0001589,2]
[346336226,1734898258864,-500.0,0.0001589,2]
[346336227,1734898258875,-151.0,0.0001589,2]
[346336228,1734898258885,-217.073814,0.0001589,2]
[346336229,1734898258896,-500.0,0.0001589,2]
[346336230,1734898258908,-709.72,0.0001589,2]
[346336231,1734898258919,-564.63,0.0001589,2]
[346336232,1734898258930,-500.0,0.0001589,2]
[346336233,1734898258942,-500.0,0.0001589,2]
[346336234,1734898258953,-500.0,0.0001589,2]
[346336235,1734898258965,-596.88,0.0001589,2]
[346336236,1734898258977,-509.11,0.0001589,2]
[346336237,1734898258989,-500.0,0.0001589,2]
[346336238,1734898258999,-500.0,0.0001589,2]
[346336239,1734898259010,-508.19,0.0001589,2]
[346336240,1734898259023,-500.0,0.0001589,2]
[346336241,1734898259034,-500.0,0.0001589,2]
[346336242,1734898259045,-500.0,0.0001589,2]
[346336243,1734898259056,-500.0,0.0001589,2]
[346336244,1734898259067,-500.0,0.0001589,2]
[346336245,1734898259078,-500.0,0.0001589,2]
[346336246,1734898259088,-500.0,0.0001589,2]
[346336247,1734898259099,-996.41,0.0001589,2]
[346336248,1734898259110,-552.02,0.0001589,2]
[346336249,1734898259122,-500.0,0.0001589,2]
[346336250,1734898259132,-896.76,0.0001589,2]
[346336251,1734898259143,-643.06,0.0001589,2]
[346336252,1734898259153,-622.12,0.0001589,2]
[346336253,1734898259164,-544.82,0.0001589,2]
[346336254,1734898259175,-500.0,0.0001589,2]
[346336255,1734898259186,-151.139843,0.0001589,2]
[346336256,1734898259196,-514.67,0.0001589,2]
[346336257,1734898259208,-151.139843,0.0001589,2]
[346336258,1734898259219,-500.0,0.0001589,2]
[346336259,1734898259230,-1747.14,0.0001589,2]
[346336260,1734898259240,-638.51,0.0001589,2]
[346336261,1734898259251,-500.0,0.0001589,2]
[346336262,1734898259262,-500.0,0.0001589,2]
[346336263,1734898259272,-1146.78,0.0001589,2]
[346336264,1734898259283,-1384.02,0.0001589,2]
[346336265,1734898259294,-402.24635516,0.0001589,2]
[346336266,1734898259304,-204.29,0.0001589,2]
[346336267,1734898259313,-1829.53,0.0001589,2]
[346336268,1734898259323,-500.0,0.0001589,2]
[346336269,1734898259332,-620.23,0.0001589,2]
[346336270,1734898259342,-1154.81,0.0001589,2]
[346336271,1734898259352,-3377.75,0.0001589,2]
[346336272,1734898259361,-1071.92,0.0001589,2]
[346336273,1734898259370,-677.42,0.0001589,2]
[346336274,1734898259380,-500.0,0.0001589,2]
[346336275,1734898259389,-674.98,0.0001589,2]
[346336276,1734898259398,-1484.35,0.0001589,2]
[346336277,1734898259407,-625.65196425,0.0001589,2]
[346336278,1734898259417,-500.0,0.0001589,2]
[346336279,1734898259426,-500.0,0.0001589,2]
[346336280,1734898259435,-915.03,0.0001589,2]
[346336281,1734898259445,-1120.23,0.0001589,2]
[346336282,1734898259454,-500.0,0.0001589,2]
[346336283,1734898259465,-500.0,0.0001589,2]
[346336284,1734898259474,-645.28,0.0001589,2]
[346336285,1734898259483,-966.84,0.0001589,2]
[346336286,1734898259493,-500.0,0.0001589,2]
[346336287,1734898259502,-671.49,0.0001589,2]
[346336288,1734898259512,-999.5,0.0001589,2]
[346336289,1734898259521,-441.6222033,0.0001589,2]
[346336290,1734898259532,-1014.49,0.0001589,2]
[346336291,1734898259541,-253.9878414,0.0001589,2]
[346336292,1734898259551,-1300.26,0.0001589,2]
[346336293,1734898259560,-500.0,0.0001589,2]
[346336294,1734898259571,-559.61,0.0001589,2]
[346336295,1734898259580,-962.09,0.0001589,2]
[346336296,1734898259590,-500.0,0.0001589,2]
[346336297,1734898259599,-500.0,0.0001589,2]
[346336298,1734898259610,-500.0,0.0001589,2]
[346336299,1734898259619,-2050.24,0.0001589,2]
[346336300,1734898259628,-500.0,0.0001589,2]
[346336301,1734898259638,-500.0,0.0001589,2]
[346336302,1734898259647,-500.0,0.0001589,2]
[346336303,1734898259656,-1840.32,0.0001589,2]
[346336304,1734898259665,-500.0,0.0001589,2]
[346336305,1734898259675,-619.23,0.0001589,2]
[346336306,1734898259684,-1286.39,0.0001589,2]
[346336307,1734898259693,-500.0,0.0001589,2]
[346336308,1734898259703,-1768.71,0.0001589,2]
[346336309,1734898259713,-1426.45,0.0001589,2]
[346336310,1734898259722,-564.33,0.0001589,2]
[346336311,1734898259732,-1742.18,0.0001589,2]